[Event "Early-Titled-Tuesday-Blitz-September-26-2023"]
[Site "Chess.com"]
[Date "2023.09.26"]
[Round "11"]
[White "kroppar"]
[Black "Arteler"]
[Result "0-1"]
[WhiteElo "2422"]
[BlackElo "2591"]
[TimeControl "180+1"]
[EndTime "10:05:23 PDT"]
[Termination "Arteler won by resignation"]

1. e4 {[%clk 0:03:00.9]} 1... e6 {[%clk 0:02:43.8]} 2. d3 {[%clk 0:03:00.4]}
2... d5 {[%clk 0:02:44]} 3. Nd2 {[%clk 0:03:00.9]} 3... Nf6 {[%clk 0:02:44.2]}
4. Ngf3 {[%clk 0:03:00.3]} 4... Nc6 {[%clk 0:02:44.4]} 5. c3 {[%clk 0:02:59.8]}
5... a5 {[%clk 0:02:44.5]} 6. Be2 {[%clk 0:02:55.5]} 6... dxe4 {[%clk
0:02:40.8]} 7. dxe4 {[%clk 0:02:54.8]} 7... e5 {[%clk 0:02:41.3]} 8. h3 {[%clk
0:02:50.9]} 8... Bc5 {[%clk 0:02:40.7]} 9. O-O {[%clk 0:02:50.4]} 9... O-O
{[%clk 0:02:40.8]} 10. Qc2 {[%clk 0:02:48.7]} 10... Qe7 {[%clk 0:02:39.5]} 11.
Nc4 {[%clk 0:02:45.3]} 11... Be6 {[%clk 0:02:36.3]} 12. Bg5 {[%clk 0:02:39.9]}
12... h6 {[%clk 0:02:36]} 13. Bh4 {[%clk 0:02:33.2]} 13... g5 {[%clk 0:02:19.1]}
14. Bg3 {[%clk 0:02:33.2]} 14... Bxc4 {[%clk 0:02:18.5]} 15. Bxc4 {[%clk
0:02:32.6]} 15... Nh5 {[%clk 0:02:19]} 16. Bh2 {[%clk 0:02:20.9]} 16... Nf4
{[%clk 0:02:19.1]} 17. g3 {[%clk 0:02:02.6]} 17... Nxh3+ {[%clk 0:02:12.8]} 18.
Kg2 {[%clk 0:02:03.2]} 18... g4 {[%clk 0:02:12.9]} 19. Nh4 {[%clk 0:02:03.9]}
19... Ng5 {[%clk 0:02:11.2]} 20. Nf5 {[%clk 0:02:03.6]} 20... Qf6 {[%clk
0:02:11.2]} 21. Qe2 {[%clk 0:01:48.8]} 21... h5 {[%clk 0:02:08.5]} 22. Rh1
{[%clk 0:01:46.7]} 22... Ne7 {[%clk 0:02:07.1]} 23. Nxe7+ {[%clk 0:01:24]} 23...
Bxe7 {[%clk 0:02:06.1]} 24. Bg1 {[%clk 0:01:23.1]} 24... Qg6 {[%clk 0:01:48.6]}
25. Re1 {[%clk 0:01:06.3]} 25... Nf3 {[%clk 0:01:45.4]} 26. Rd1 {[%clk
0:01:01.7]} 26... Rad8 {[%clk 0:01:45.2]} 27. Bh2 {[%clk 0:00:49.8]} 27... Bc5
{[%clk 0:01:24.3]} 28. Bd5 {[%clk 0:00:46]} 28... c6 {[%clk 0:01:22.1]} 29. Bb3
{[%clk 0:00:46.7]} 29... Kg7 {[%clk 0:01:07.1]} 30. Bc2 {[%clk 0:00:45.5]} 30...
Qg5 {[%clk 0:01:02.9]} 31. a3 {[%clk 0:00:36.3]} 31... f6 {[%clk 0:00:45.2]} 32.
b4 {[%clk 0:00:30.4]} 32... axb4 {[%clk 0:00:44.5]} 33. axb4 {[%clk 0:00:31.3]}
33... Bb6 {[%clk 0:00:45.2]} 34. b5 {[%clk 0:00:25]} 34... h4 {[%clk 0:00:45.4]}
35. gxh4 {[%clk 0:00:11.7]} 35... Nxh4+ {[%clk 0:00:46.3]} 36. Kg1 {[%clk
0:00:05.7]} 36... Rxd1+ {[%clk 0:00:46.2]} 37. Bxd1 {[%clk 0:00:05.4]} 37... g3
{[%clk 0:00:44.6]} 38. Bxg3 {[%clk 0:00:02.7]} 38... Qxg3+ {[%clk 0:00:44.8]}
39. Kf1 {[%clk 0:00:03.3]} 39... Qg2+ {[%clk 0:00:45.2]} 40. Ke1 {[%clk
0:00:04]} 40... Qxh1+ {[%clk 0:00:43.8]} 41. Kd2 {[%clk 0:00:04.6]} 41... Rd8+
{[%clk 0:00:43.9]} 42. Kc2 {[%clk 0:00:05.2]} 42... Qxd1+ {[%clk 0:00:43.4]} 43.
Qxd1 {[%clk 0:00:06.1]} 43... Rxd1 {[%clk 0:00:44]} 44. Kxd1 {[%clk 0:00:07]}
44... Bxf2 {[%clk 0:00:44.4]} 0-1

[Event "Early-Titled-Tuesday-Blitz-September-26-2023"]
[Site "Chess.com"]
[Date "2023.09.26"]
[Round "11"]
[White "Francisco_Ferrari"]
[Black "HrvojeZagreb"]
[Result "0-1"]
[WhiteElo "2386"]
[BlackElo "2309"]
[TimeControl "180+1"]
[EndTime "10:05:25 PDT"]
[Termination "HrvojeZagreb won on time"]

1. e4 {[%clk 0:02:50.2]} 1... c5 {[%clk 0:02:59.5]} 2. Nf3 {[%clk 0:02:49.2]}
2... a6 {[%clk 0:02:59.7]} 3. d4 {[%clk 0:02:46.1]} 3... cxd4 {[%clk 0:03:00.6]}
4. Nxd4 {[%clk 0:02:46.4]} 4... Nf6 {[%clk 0:03:00.2]} 5. e5 {[%clk 0:02:45.2]}
5... Qa5+ {[%clk 0:02:59.7]} 6. Nc3 {[%clk 0:02:45]} 6... Qxe5+ {[%clk
0:03:00.6]} 7. Be2 {[%clk 0:02:45]} 7... Nc6 {[%clk 0:02:59.6]} 8. Nf3 {[%clk
0:02:37.9]} 8... Qc7 {[%clk 0:02:57.2]} 9. Bg5 {[%clk 0:02:27.9]} 9... h6 {[%clk
0:02:49.4]} 10. Bxf6 {[%clk 0:02:23.3]} 10... gxf6 {[%clk 0:02:50.3]} 11. O-O
{[%clk 0:02:18.6]} 11... e6 {[%clk 0:02:48.6]} 12. Ne4 {[%clk 0:02:15.6]} 12...
Be7 {[%clk 0:02:47.7]} 13. Qd2 {[%clk 0:02:04.7]} 13... d5 {[%clk 0:02:46.3]}
14. Ng3 {[%clk 0:01:58.1]} 14... Bd7 {[%clk 0:02:43.6]} 15. Rfe1 {[%clk
0:01:56]} 15... h5 {[%clk 0:02:39.5]} 16. c4 {[%clk 0:01:54.7]} 16... dxc4
{[%clk 0:02:38.4]} 17. Bxc4 {[%clk 0:01:49.8]} 17... h4 {[%clk 0:02:37.7]} 18.
Ne4 {[%clk 0:01:48.6]} 18... f5 {[%clk 0:02:35.3]} 19. Qc3 {[%clk 0:01:43.3]}
19... O-O-O {[%clk 0:02:33.4]} 20. Ned2 {[%clk 0:01:32.5]} 20... Rhg8 {[%clk
0:02:27.6]} 21. a3 {[%clk 0:01:25.1]} 21... Rg4 {[%clk 0:02:21]} 22. b4 {[%clk
0:01:21.2]} 22... Rdg8 {[%clk 0:02:16.5]} 23. Bf1 {[%clk 0:01:13.9]} 23... Nd4
{[%clk 0:01:40.3]} 24. Qxc7+ {[%clk 0:01:04.4]} 24... Kxc7 {[%clk 0:01:41.2]}
25. Rac1+ {[%clk 0:01:02.8]} 25... Kb8 {[%clk 0:01:39.4]} 26. Ne5 {[%clk
0:01:00.8]} 26... Be8 {[%clk 0:01:38.9]} 27. Nxg4 {[%clk 0:01:00.5]} 27... Rxg4
{[%clk 0:01:32.2]} 28. h3 {[%clk 0:00:52.4]} 28... Rg8 {[%clk 0:01:23]} 29. Rc4
{[%clk 0:00:47.5]} 29... Bf6 {[%clk 0:01:17.6]} 30. Rec1 {[%clk 0:00:32.8]}
30... Bc6 {[%clk 0:01:16.5]} 31. Kh1 {[%clk 0:00:24.5]} 31... e5 {[%clk
0:01:01.2]} 32. R1c3 {[%clk 0:00:11.5]} 32... e4 {[%clk 0:00:54.2]} 33. Rc1
{[%clk 0:00:11.3]} 33... Rd8 {[%clk 0:00:41.5]} 34. Rd1 {[%clk 0:00:08.5]} 34...
Nb5 {[%clk 0:00:33.8]} 35. Rcc1 {[%clk 0:00:06.7]} 35... Nc3 {[%clk 0:00:32.4]}
36. Re1 {[%clk 0:00:03.4]} 36... Rxd2 {[%clk 0:00:31.4]} 37. Kg1 {[%clk
0:00:04.2]} 37... Bd4 {[%clk 0:00:30.8]} 0-1

[Event "Early-Titled-Tuesday-Blitz-September-26-2023"]
[Site "Chess.com"]
[Date "2023.09.26"]
[Round "11"]
[White "Zohid6"]
[Black "rasmussvane"]
[Result "1-0"]
[WhiteElo "2801"]
[BlackElo "2981"]
[TimeControl "180+1"]
[EndTime "10:05:35 PDT"]
[Termination "Zohid6 won by resignation"]

1. d4 {[%clk 0:02:56.1]} 1... d5 {[%clk 0:02:59.5]} 2. Nc3 {[%clk 0:02:56]} 2...
Nf6 {[%clk 0:02:59.1]} 3. Bf4 {[%clk 0:02:55]} 3... c6 {[%clk 0:02:59.6]} 4. e3
{[%clk 0:02:54.3]} 4... Bf5 {[%clk 0:02:59.6]} 5. Nf3 {[%clk 0:02:54.8]} 5... e6
{[%clk 0:02:59.5]} 6. Ne5 {[%clk 0:02:55.3]} 6... h5 {[%clk 0:02:55.9]} 7. Bd3
{[%clk 0:02:54.7]} 7... Nbd7 {[%clk 0:02:55.7]} 8. O-O {[%clk 0:02:54.4]} 8...
Be7 {[%clk 0:02:54.5]} 9. h3 {[%clk 0:02:42.9]} 9... Nxe5 {[%clk 0:02:49.3]} 10.
dxe5 {[%clk 0:02:42.1]} 10... Nd7 {[%clk 0:02:49.7]} 11. e4 {[%clk 0:02:41]}
11... dxe4 {[%clk 0:02:42]} 12. Bxe4 {[%clk 0:02:41.9]} 12... Nc5 {[%clk
0:02:32.9]} 13. Bxf5 {[%clk 0:02:25.6]} 13... Qxd1 {[%clk 0:02:32.4]} 14. Raxd1
{[%clk 0:02:22.6]} 14... exf5 {[%clk 0:02:33.3]} 15. Be3 {[%clk 0:02:20.3]}
15... Ne6 {[%clk 0:02:32.3]} 16. Ne2 {[%clk 0:02:20.4]} 16... g5 {[%clk
0:01:54.2]} 17. f3 {[%clk 0:02:15.9]} 17... Rg8 {[%clk 0:01:47.2]} 18. g4 {[%clk
0:02:05.2]} 18... f4 {[%clk 0:01:39.2]} 19. Bf2 {[%clk 0:02:02.3]} 19... Rh8
{[%clk 0:01:38.6]} 20. Nc3 {[%clk 0:01:55.9]} 20... b6 {[%clk 0:01:32.4]} 21.
Ne4 {[%clk 0:01:54]} 21... Rd8 {[%clk 0:01:32.5]} 22. a4 {[%clk 0:01:50]} 22...
hxg4 {[%clk 0:01:18.2]} 23. hxg4 {[%clk 0:01:48.2]} 23... c5 {[%clk 0:01:14.7]}
24. c3 {[%clk 0:01:43.2]} 24... Rh6 {[%clk 0:01:12.1]} 25. Kg2 {[%clk
0:01:40.4]} 25... Nc7 {[%clk 0:01:11]} 26. Rh1 {[%clk 0:01:16]} 26... Rxd1
{[%clk 0:01:00.6]} 27. Rxh6 {[%clk 0:01:10.3]} 27... Rb1 {[%clk 0:00:59.2]} 28.
Rh8+ {[%clk 0:00:39.2]} 28... Kd7 {[%clk 0:00:58.7]} 29. Rh7 {[%clk 0:00:40.1]}
29... Ke6 {[%clk 0:00:57.2]} 30. Rh6+ {[%clk 0:00:40.5]} 30... Kxe5 {[%clk
0:00:56.4]} 31. Rh7 {[%clk 0:00:41.2]} 31... Ke6 {[%clk 0:00:55.8]} 32. Rh6+
{[%clk 0:00:38.7]} 32... Kd7 {[%clk 0:00:50.1]} 33. Rh7 {[%clk 0:00:36.8]} 33...
Rxb2 {[%clk 0:00:47.6]} 34. Rxf7 {[%clk 0:00:36.7]} 34... Ne6 {[%clk 0:00:43.4]}
35. Nf6+ {[%clk 0:00:32.8]} 35... Kd8 {[%clk 0:00:43.2]} 36. Nd5 {[%clk
0:00:33.2]} 36... Bd6 {[%clk 0:00:40.5]} 37. Rxa7 {[%clk 0:00:33.2]} 37... c4
{[%clk 0:00:36.2]} 38. Ra8+ {[%clk 0:00:25.3]} 38... Kd7 {[%clk 0:00:35.3]} 39.
Nxb6+ {[%clk 0:00:25.5]} 39... Kc6 {[%clk 0:00:29]} 40. Nxc4 {[%clk 0:00:25.3]}
40... Bc5 {[%clk 0:00:29.2]} 41. Nxb2 {[%clk 0:00:24.9]} 1-0

[Event "Early-Titled-Tuesday-Blitz-September-26-2023"]
[Site "Chess.com"]
[Date "2023.09.26"]
[Round "11"]
[White "stepanosinovsky"]
[Black "Alexei_Gubajdullin"]
[Result "0-1"]
[WhiteElo "2374"]
[BlackElo "2697"]
[TimeControl "180+1"]
[EndTime "10:05:38 PDT"]
[Termination "Alexei_Gubajdullin won by resignation"]

1. Nf3 {[%clk 0:03:00.9]} 1... Nf6 {[%clk 0:02:59.6]} 2. g3 {[%clk 0:03:01.6]}
2... g6 {[%clk 0:02:59.8]} 3. Bg2 {[%clk 0:03:02.5]} 3... Bg7 {[%clk 0:03:00.1]}
4. O-O {[%clk 0:03:03.4]} 4... O-O {[%clk 0:03:00.4]} 5. d3 {[%clk 0:03:02.3]}
5... c5 {[%clk 0:03:00.5]} 6. e4 {[%clk 0:03:02.3]} 6... Nc6 {[%clk 0:03:00.4]}
7. Re1 {[%clk 0:03:02.3]} 7... d6 {[%clk 0:03:00.2]} 8. Nc3 {[%clk 0:03:01.4]}
8... Bg4 {[%clk 0:02:59.8]} 9. h3 {[%clk 0:03:00.5]} 9... Bxf3 {[%clk
0:02:59.9]} 10. Qxf3 {[%clk 0:03:01.4]} 10... Nd7 {[%clk 0:02:59.9]} 11. a4
{[%clk 0:02:57.7]} 11... Rb8 {[%clk 0:02:58.6]} 12. h4 {[%clk 0:02:55.8]} 12...
a6 {[%clk 0:02:57.9]} 13. h5 {[%clk 0:02:54.2]} 13... b5 {[%clk 0:02:57.6]} 14.
Nd5 {[%clk 0:02:39.9]} 14... e6 {[%clk 0:02:55.7]} 15. Nf4 {[%clk 0:02:25.4]}
15... Nd4 {[%clk 0:02:49.2]} 16. Qd1 {[%clk 0:02:24.7]} 16... b4 {[%clk
0:02:49.1]} 17. h6 {[%clk 0:02:08]} 17... Bh8 {[%clk 0:02:48.2]} 18. Ne2 {[%clk
0:01:50.7]} 18... b3 {[%clk 0:02:45.8]} 19. Nxd4 {[%clk 0:01:50.1]} 19... cxd4
{[%clk 0:02:45.4]} 20. cxb3 {[%clk 0:01:41.3]} 20... Nc5 {[%clk 0:02:44.8]} 21.
Ra3 {[%clk 0:01:18.9]} 21... Qb6 {[%clk 0:02:36.9]} 22. a5 {[%clk 0:01:18.8]}
22... Qb5 {[%clk 0:02:36.3]} 23. Bf4 {[%clk 0:00:56.5]} 23... Rfd8 {[%clk
0:02:30.9]} 24. e5 {[%clk 0:00:51]} 24... Qxd3 {[%clk 0:02:17.9]} 25. exd6
{[%clk 0:00:46.9]} 25... Qxd1 {[%clk 0:02:16.1]} 26. Rxd1 {[%clk 0:00:46.2]}
26... e5 {[%clk 0:02:16.1]} 27. b4 {[%clk 0:00:43.2]} 27... Ne6 {[%clk
0:02:11.8]} 28. Bd2 {[%clk 0:00:35.9]} 28... Rxd6 {[%clk 0:02:10.7]} 29. Rb3
{[%clk 0:00:33.6]} 29... f5 {[%clk 0:02:09.3]} 30. b5 {[%clk 0:00:31.3]} 30...
axb5 {[%clk 0:01:58.5]} 31. Bf1 {[%clk 0:00:25.6]} 31... e4 {[%clk 0:01:47.6]}
32. Rxb5 {[%clk 0:00:23.7]} 32... Rxb5 {[%clk 0:01:37.2]} 33. Bxb5 {[%clk
0:00:24.6]} 33... e3 {[%clk 0:01:33.8]} 34. Bb4 {[%clk 0:00:20.9]} 34... Rd8
{[%clk 0:01:27]} 35. fxe3 {[%clk 0:00:19.9]} 35... Kf7 {[%clk 0:01:24.1]} 36.
Bc4 {[%clk 0:00:18.6]} 36... Rb8 {[%clk 0:01:21.6]} 37. Bc5 {[%clk 0:00:17]}
37... Rxb2 {[%clk 0:01:19.6]} 38. exd4 {[%clk 0:00:16.7]} 38... Rc2 {[%clk
0:01:18.3]} 39. Bb3 {[%clk 0:00:15.5]} 39... Rc3 {[%clk 0:01:17.8]} 40. Bd5
{[%clk 0:00:15.4]} 40... Kf6 {[%clk 0:01:13.3]} 41. Re1 {[%clk 0:00:14.1]} 41...
Nxc5 {[%clk 0:01:12]} 42. dxc5 {[%clk 0:00:14.4]} 42... Rxc5 {[%clk 0:01:12]}
43. Bg8 {[%clk 0:00:12.3]} 43... Kg5 {[%clk 0:01:09.3]} 44. Bxh7 {[%clk
0:00:10.7]} 44... Kxh6 {[%clk 0:01:07.6]} 45. Bg8 {[%clk 0:00:10.5]} 45... Rxa5
{[%clk 0:01:07.1]} 46. Kg2 {[%clk 0:00:10]} 46... Be5 {[%clk 0:01:05.8]} 47. Bc4
{[%clk 0:00:09.4]} 47... Kg5 {[%clk 0:01:04.9]} 48. Re3 {[%clk 0:00:08.6]} 48...
Rc5 {[%clk 0:01:03.5]} 49. Be2 {[%clk 0:00:08.4]} 49... Kf6 {[%clk 0:01:03.5]}
50. Rb3 {[%clk 0:00:08.1]} 50... Rc2 {[%clk 0:01:00.8]} 51. Kf2 {[%clk
0:00:08.2]} 51... Kg5 {[%clk 0:00:59.3]} 52. Re3 {[%clk 0:00:07]} 52... Bd4
{[%clk 0:00:59.2]} 53. Kf3 {[%clk 0:00:07]} 53... Bxe3 {[%clk 0:00:59.3]} 54.
Kxe3 {[%clk 0:00:07.9]} 54... Rc3+ {[%clk 0:00:59.5]} 55. Kf2 {[%clk 0:00:07.3]}
55... Ra3 {[%clk 0:00:59.6]} 0-1

[Event "Early-Titled-Tuesday-Blitz-September-26-2023"]
[Site "Chess.com"]
[Date "2023.09.26"]
[Round "11"]
[White "AleksandrAleksikov"]
[Black "KatakuriDono"]
[Result "0-1"]
[WhiteElo "2212"]
[BlackElo "2322"]
[TimeControl "180+1"]
[EndTime "10:05:42 PDT"]
[Termination "KatakuriDono won on time"]

1. e4 {[%clk 0:03:00.9]} 1... e5 {[%clk 0:03:00.3]} 2. Nf3 {[%clk 0:02:59.3]}
2... Nc6 {[%clk 0:03:00.8]} 3. c3 {[%clk 0:02:59.1]} 3... d5 {[%clk 0:02:59.8]}
4. Qa4 {[%clk 0:02:57.8]} 4... f6 {[%clk 0:02:58.6]} 5. Bb5 {[%clk 0:02:56.4]}
5... Qd6 {[%clk 0:02:46]} 6. exd5 {[%clk 0:02:53.4]} 6... Qxd5 {[%clk 0:02:46]}
7. d4 {[%clk 0:02:53.3]} 7... e4 {[%clk 0:02:42.4]} 8. c4 {[%clk 0:02:43.9]}
8... Qd6 {[%clk 0:02:35.2]} 9. Nfd2 {[%clk 0:02:42.8]} 9... Bd7 {[%clk
0:02:11.6]} 10. d5 {[%clk 0:02:21.9]} 10... Nd4 {[%clk 0:02:00.7]} 11. Nxe4
{[%clk 0:02:16.4]} 11... Qe7 {[%clk 0:01:47.9]} 12. Bxd7+ {[%clk 0:02:09.2]}
12... Qxd7 {[%clk 0:01:48.8]} 13. Qd1 {[%clk 0:01:58.7]} 13... Bb4+ {[%clk
0:01:44.8]} 14. Nbc3 {[%clk 0:01:55.5]} 14... c5 {[%clk 0:01:38.5]} 15. dxc6
{[%clk 0:01:43.3]} 15... Nxc6 {[%clk 0:01:23.3]} 16. Qxd7+ {[%clk 0:01:22.9]}
16... Kxd7 {[%clk 0:01:24.2]} 17. a3 {[%clk 0:01:21.9]} 17... Bxc3+ {[%clk
0:01:23.8]} 18. Nxc3 {[%clk 0:01:20.5]} 18... Nge7 {[%clk 0:01:23.6]} 19. Bf4
{[%clk 0:01:06.1]} 19... Rad8 {[%clk 0:01:11.2]} 20. O-O-O+ {[%clk 0:01:03.4]}
20... Kc8 {[%clk 0:01:11]} 21. Nb5 {[%clk 0:01:00.3]} 21... Nf5 {[%clk
0:00:47.8]} 22. g4 {[%clk 0:00:30.7]} 22... a6 {[%clk 0:00:47.7]} 23. gxf5
{[%clk 0:00:24.7]} 23... axb5 {[%clk 0:00:47.9]} 24. cxb5 {[%clk 0:00:24.4]}
24... Nd4 {[%clk 0:00:47.8]} 25. Kb1 {[%clk 0:00:18]} 25... Nxf5 {[%clk
0:00:47.1]} 26. Rc1+ {[%clk 0:00:16.1]} 26... Kd7 {[%clk 0:00:45.8]} 27. Rc7+
{[%clk 0:00:14.9]} 27... Ke6 {[%clk 0:00:43.1]} 28. Re1+ {[%clk 0:00:11.6]}
28... Kd5 {[%clk 0:00:41.4]} 29. Rxb7 {[%clk 0:00:09.2]} 29... Rc8 {[%clk
0:00:37]} 30. a4 {[%clk 0:00:07.4]} 30... Kc4 {[%clk 0:00:34.1]} 31. a5 {[%clk
0:00:06.1]} 31... Kb3 {[%clk 0:00:33]} 32. a6 {[%clk 0:00:05.3]} 32... Rc2
{[%clk 0:00:30.9]} 33. Bc1 {[%clk 0:00:04.9]} 33... Nd6 {[%clk 0:00:18.2]} 34.
Rb6 {[%clk 0:00:04.5]} 34... Nc4 {[%clk 0:00:18.2]} 35. Rc6 {[%clk 0:00:04.4]}
35... Rd8 {[%clk 0:00:14.2]} 36. b6 {[%clk 0:00:03.1]} 36... Na3+ {[%clk
0:00:10.9]} 0-1

[Event "Early-Titled-Tuesday-Blitz-September-26-2023"]
[Site "Chess.com"]
[Date "2023.09.26"]
[Round "11"]
[White "JosefineHeinemann"]
[Black "Kopytkin"]
[Result "1-0"]
[WhiteElo "2547"]
[BlackElo "2368"]
[TimeControl "180+1"]
[EndTime "10:05:44 PDT"]
[Termination "JosefineHeinemann won on time"]

1. Nf3 {[%clk 0:02:50.8]} 1... g6 {[%clk 0:02:58.6]} 2. g3 {[%clk 0:02:46.8]}
2... Bg7 {[%clk 0:02:58.7]} 3. d4 {[%clk 0:02:47.3]} 3... c5 {[%clk 0:02:57.3]}
4. Bg2 {[%clk 0:02:47.9]} 4... cxd4 {[%clk 0:02:57.2]} 5. Nxd4 {[%clk
0:02:47.9]} 5... d5 {[%clk 0:02:57]} 6. O-O {[%clk 0:02:46.9]} 6... e5 {[%clk
0:02:57.2]} 7. Nb3 {[%clk 0:02:47.3]} 7... Ne7 {[%clk 0:02:52.6]} 8. c4 {[%clk
0:02:42]} 8... d4 {[%clk 0:02:49]} 9. e3 {[%clk 0:02:41.7]} 9... Nbc6 {[%clk
0:02:47.8]} 10. exd4 {[%clk 0:02:42]} 10... exd4 {[%clk 0:02:48.1]} 11. Bf4
{[%clk 0:02:40.1]} 11... O-O {[%clk 0:02:47.2]} 12. c5 {[%clk 0:02:40.4]} 12...
Re8 {[%clk 0:02:45.5]} 13. Re1 {[%clk 0:02:39.7]} 13... Be6 {[%clk 0:02:40.8]}
14. N1d2 {[%clk 0:02:34.2]} 14... Nd5 {[%clk 0:02:31.9]} 15. Bd6 {[%clk
0:02:32]} 15... Qd7 {[%clk 0:02:24.7]} 16. Ne4 {[%clk 0:02:30.4]} 16... h6
{[%clk 0:02:20.6]} 17. Qd3 {[%clk 0:02:17.1]} 17... Ndb4 {[%clk 0:02:18.3]} 18.
Qd1 {[%clk 0:02:07.3]} 18... d3 {[%clk 0:02:18]} 19. Nc3 {[%clk 0:02:03.8]}
19... Nc2 {[%clk 0:02:02]} 20. Qxd3 {[%clk 0:02:03.6]} 20... Nxa1 {[%clk
0:02:00]} 21. Rxa1 {[%clk 0:02:03.1]} 21... Bf5 {[%clk 0:01:47.7]} 22. Qd2
{[%clk 0:02:01.5]} 22... Rad8 {[%clk 0:01:35.9]} 23. Rd1 {[%clk 0:01:39.1]}
23... Be5 {[%clk 0:01:20]} 24. Nd5 {[%clk 0:01:21.8]} 24... Kg7 {[%clk
0:00:45.9]} 25. Nc7 {[%clk 0:01:16.5]} 25... Qxc7 {[%clk 0:00:39]} 26. Bxc7
{[%clk 0:01:11.7]} 26... Rxd2 {[%clk 0:00:39]} 27. Bxe5+ {[%clk 0:01:11.9]}
27... Rxe5 {[%clk 0:00:33.6]} 28. Nxd2 {[%clk 0:01:09.4]} 28... Rxc5 {[%clk
0:00:33]} 29. Ne4 {[%clk 0:00:51.3]} 29... Rc2 {[%clk 0:00:24.6]} 30. Nd6 {[%clk
0:00:51.4]} 30... Rxb2 {[%clk 0:00:24.5]} 31. Nxf5+ {[%clk 0:00:50.2]} 31...
gxf5 {[%clk 0:00:24.4]} 32. h4 {[%clk 0:00:50.4]} 32... Rxa2 {[%clk 0:00:18]}
33. Rd7 {[%clk 0:00:50.3]} 33... Rb2 {[%clk 0:00:12.6]} 34. Bxc6 {[%clk
0:00:45.4]} 34... bxc6 {[%clk 0:00:12.4]} 35. Rxa7 {[%clk 0:00:46.3]} 35... Rc2
{[%clk 0:00:10.2]} 36. Rc7 {[%clk 0:00:46.4]} 36... Kf6 {[%clk 0:00:09.6]} 37.
Kg2 {[%clk 0:00:46.7]} 37... Ke5 {[%clk 0:00:09.7]} 38. Rxf7 {[%clk 0:00:45.5]}
38... h5 {[%clk 0:00:08.6]} 39. Rh7 {[%clk 0:00:45.4]} 39... c5 {[%clk
0:00:06.7]} 40. Rxh5 {[%clk 0:00:45.6]} 40... c4 {[%clk 0:00:07.2]} 41. g4
{[%clk 0:00:45.3]} 41... Kf4 {[%clk 0:00:07.6]} 42. g5 {[%clk 0:00:32.5]} 42...
Ra2 {[%clk 0:00:07.7]} 43. Rh8 {[%clk 0:00:32.2]} 43... Ra7 {[%clk 0:00:02.5]}
44. Rc8 {[%clk 0:00:31.5]} 44... Ra4 {[%clk 0:00:02.3]} 45. g6 {[%clk
0:00:30.3]} 1-0

[Event "Early-Titled-Tuesday-Blitz-September-26-2023"]
[Site "Chess.com"]
[Date "2023.09.26"]
[Round "11"]
[White "Zampronha1971"]
[Black "Kotofeyca"]
[Result "0-1"]
[WhiteElo "2263"]
[BlackElo "2376"]
[TimeControl "180+1"]
[EndTime "10:05:50 PDT"]
[Termination "Kotofeyca won by resignation"]

1. e4 {[%clk 0:03:00.9]} 1... c5 {[%clk 0:02:57]} 2. Nf3 {[%clk 0:03:00.2]} 2...
d6 {[%clk 0:02:56.9]} 3. d4 {[%clk 0:03:00.3]} 3... cxd4 {[%clk 0:02:57.8]} 4.
Nxd4 {[%clk 0:03:00.4]} 4... Nf6 {[%clk 0:02:58.4]} 5. Nc3 {[%clk 0:02:59]} 5...
a6 {[%clk 0:02:58.8]} 6. Bg5 {[%clk 0:02:58.5]} 6... e6 {[%clk 0:02:58.6]} 7. f4
{[%clk 0:02:58.3]} 7... Qb6 {[%clk 0:02:58.9]} 8. Qd2 {[%clk 0:02:56.6]} 8...
Nc6 {[%clk 0:02:59.1]} 9. O-O-O {[%clk 0:02:51.7]} 9... Bd7 {[%clk 0:02:57.4]}
10. Nf3 {[%clk 0:02:38.5]} 10... Qc7 {[%clk 0:02:39.7]} 11. e5 {[%clk 0:02:32]}
11... dxe5 {[%clk 0:02:25.6]} 12. fxe5 {[%clk 0:02:31.9]} 12... Ng4 {[%clk
0:02:23.3]} 13. Bf4 {[%clk 0:02:27.5]} 13... O-O-O {[%clk 0:01:48.2]} 14. h3
{[%clk 0:02:16.9]} 14... Ngxe5 {[%clk 0:01:40.6]} 15. Nxe5 {[%clk 0:02:17.8]}
15... Nxe5 {[%clk 0:01:40.6]} 16. Qe3 {[%clk 0:02:18.4]} 16... f6 {[%clk
0:01:31.4]} 17. Bxe5 {[%clk 0:02:12.5]} 17... Qxe5 {[%clk 0:01:24.3]} 18. Qxe5
{[%clk 0:02:12.6]} 18... fxe5 {[%clk 0:01:25.2]} 19. Re1 {[%clk 0:02:13.1]}
19... Bd6 {[%clk 0:01:02]} 20. Ne4 {[%clk 0:02:12.9]} 20... Bc7 {[%clk
0:00:57.6]} 21. Bc4 {[%clk 0:02:13.3]} 21... b5 {[%clk 0:00:47.2]} 22. Bb3
{[%clk 0:02:12.1]} 22... a5 {[%clk 0:00:31]} 23. Ng5 {[%clk 0:02:10.4]} 23...
Rde8 {[%clk 0:00:29]} 24. a3 {[%clk 0:01:54.3]} 24... a4 {[%clk 0:00:28.7]} 25.
Ba2 {[%clk 0:01:53.8]} 25... Re7 {[%clk 0:00:25.4]} 26. Re2 {[%clk 0:01:45]}
26... h6 {[%clk 0:00:25.6]} 27. Ne4 {[%clk 0:01:44.8]} 27... Bc6 {[%clk
0:00:22.3]} 28. Rhe1 {[%clk 0:01:39.7]} 28... Rf8 {[%clk 0:00:21.7]} 29. Nc5
{[%clk 0:01:35.7]} 29... Bd5 {[%clk 0:00:21.7]} 30. Kb1 {[%clk 0:01:29]} 30...
Bd6 {[%clk 0:00:20.7]} 31. Nd3 {[%clk 0:01:29]} 31... Rf5 {[%clk 0:00:18.9]} 32.
Nxe5 {[%clk 0:01:27.6]} 32... Bxa2+ {[%clk 0:00:17.1]} 33. Kxa2 {[%clk
0:01:27.1]} 33... Rc7 {[%clk 0:00:16.4]} 34. c3 {[%clk 0:01:23]} 34... Rc5
{[%clk 0:00:14.3]} 35. Nf3 {[%clk 0:01:08.2]} 35... e5 {[%clk 0:00:14]} 36. Nd2
{[%clk 0:01:02]} 36... Rd5 {[%clk 0:00:12.7]} 37. Ne4 {[%clk 0:01:02]} 37... Kd7
{[%clk 0:00:12.9]} 38. Kb1 {[%clk 0:00:56.2]} 38... Ke6 {[%clk 0:00:13]} 39. Kc2
{[%clk 0:00:56.6]} 39... Bc7 {[%clk 0:00:12.6]} 40. Rd2 {[%clk 0:00:54.6]} 40...
h5 {[%clk 0:00:11.4]} 41. Rxd5 {[%clk 0:00:53.1]} 41... Kxd5 {[%clk 0:00:12.3]}
42. Kd3 {[%clk 0:00:51.8]} 42... Bd8 {[%clk 0:00:11.2]} 43. Kc2 {[%clk
0:00:27.5]} 43... Rf4 {[%clk 0:00:10.9]} 44. Nd2 {[%clk 0:00:27.3]} 44... Rf2
{[%clk 0:00:10.8]} 45. Rg1 {[%clk 0:00:25.9]} 45... Bg5 {[%clk 0:00:10.7]} 0-1